[Event "Karel Janecek Open 2024"]
[Site "Prague"]
[Date "2024.03.07"]
[Round "9.5"]
[White "Safarli, Eltaj"]
[Black "Ilamparthi A R"]
[Result "1-0"]
[ECO "C77"]
[WhiteElo "2604"]
[BlackElo "2426"]
[Annotator "TA"]
[PlyCount "99"]
[EventDate "2024.02.22"]
[EventType "swiss"]
[EventCountry "CZE"]
[SourceTitle "playchess.com"]
[Source "ChessBase"]
[SourceQuality "1"]
[TimeControl "40/5400+30:1800+30"]

{[%evp 12,99,31,41,41,21,26,17,26,12,13,0,14,0,0,-8,0,0,21,4,46,-11,45,26,91,92,78,79,147,133,208,205,183,183,172,169,166,128,168,145,143,139,242,229,245,243,253,204,269,247,313,261,291,295,317,289,298,304,327,350,373,337,857,850,814,781,1883,1879,2685,2403,29957,29951,12850,12808,6295,6203,29991,29992,29992,29990,29990,29972,29966,29968,29952,6323,6275,5410,29992,29993]} 1. e4 {[%emt 0:02:29]} e5 {[%emt 0:00:13]} 2. Nf3 {[%emt 0:03:54]} Nc6 {[%emt 0:00:07]} 3. Bb5 {[%emt 0:01:29]} a6 {[%emt 0:00:05]} 4. Ba4 {[%emt 0:00:07]} Nf6 {[%emt 0:00:05]} 5. Nc3 {[%emt 0:02:39]} d6 {[%emt 0:00:09]} 6. Bxc6+ {[%emt 0:04:17]} bxc6 {[%emt 0:00:02]} 7. d4 {[%emt 0:00:07] C77: Ruy Lopez: 3...a6 4 Ba4 Nf6, unusual lines.} Nd7 {[%emt 0:00:09]} 8. dxe5 {[%emt 0:02:00]} dxe5 {[%emt 0:00:04]} 9. O-O {[%emt 0:00:48]} Bd6 {[%emt 0:00:07]} 10. Be3 {[%emt 0:02:22]} O-O {[%emt 0:00:15]} 11. Ne2 $146 {[%emt 0:03:13]} ({Predecessor:} 11. h3 Qe8 12. Ne2 c5 13. b3 Bb7 14. Ng3 Rd8 15. Nd2 Nb8 16. c3 f6 17. Nc4 {1-0 Bortnyk,O (2608)-Hansen,E (2609) Titled Tuesday intern op 12th Sep Early blitz 2023 (10)}) 11... Qe7 {[%emt 0:04:20]} 12. Ng3 {[%emt 0:01:18]} g6 {[%emt 0:03:24]} 13. Qd3 {[%emt 0:02:36]} Nc5 {[%emt 0:10:29]} 14. Qc3 {[%emt 0:01:20]} f6 {[%emt 0:04:28]} 15. Nd2 {[%emt 0:03:12]} Be6 {[%emt 0:13:15]} 16. a4 {[%emt 0:00:40]} (16. b3 $14) 16... Rab8 {[%emt 0:04:04]} (16... Nb7 $11) 17. Nc4 {[%emt 0:05:10]} Nb7 {[%emt 0:08:42]} (17... Bxc4 $11 {remains equal.} 18. Qxc4+ Qf7) 18. Nxd6 $16 {[%emt 0:03:29]} cxd6 {[%emt 0:02:27]} 19. f4 {[%emt 0:00:04]} (19. Qxc6 Rfc8 20. Qb6 (20. Qxa6 Bc4 $15) 20... Nc5 $11) 19... c5 {[%emt 0:10:11]} ({Black should play} 19... exf4 20. Bxf4 (20. Rxf4 Nc5 $16) 20... Nd8) 20. f5 $16 {[%emt 0:01:46]} Bf7 {[%emt 0:02:37]} (20... gxf5 $16 21. Nxf5 Bxf5 22. Rxf5 Nd8) 21. Bh6 $18 {[%emt 0:00:26]} g5 {[%emt 0:09:13]} 22. Bxf8 {[%emt 0:01:15]} Kxf8 {[%emt 0:00:20]} 23. Rfd1 {[%emt 0:01:31]} c4 {[%emt 0:06:03]} 24. Qd2 {[%emt 0:04:02]} Qc7 {[%emt 0:01:37]} 25. Ne2 {[%emt 0:01:28]} Qc5+ {[%emt 0:09:07]} 26. Kh1 {[%emt 0:01:02]} Ke7 {[%emt 0:00:04]} (26... d5 $16) 27. Nc3 $18 {[%emt 0:01:33]} Qc6 {[%emt 0:01:21]} 28. Qe3 {[%emt 0:06:42]} Nc5 {[%emt 0:00:52]} 29. Rab1 {[%emt 0:00:14]} Rb7 {[%emt 0:02:30]} 30. a5 {[%emt 0:04:33]} Qc7 {[%emt 0:03:01]} 31. Qe1 {[%emt 0:04:15]} Qc6 {[%emt 0:01:32]} 32. Rd2 {[%emt 0:02:47]} Qc7 {[%emt 0:00:17]} 33. Nd5+ {[%emt 0:06:05]} Bxd5 {[%emt 0:00:03]} 34. Rxd5 {[%emt 0:00:02]} (34. exd5 Qxa5 35. h4 Ne4 $11) 34... Qb8 {[%emt 0:02:03]} 35. Rbd1 {[%emt 0:03:08]} Rxb2 {[%emt 0:00:18]} 36. Rxd6 {[%emt 0:02:50]} Rxc2 $2 {[%emt 0:03:02]} (36... Qxd6 37. Rxd6 Kxd6) 37. Rb6 $18 {[%emt 0:04:47]} Qc7 {[%emt 0:00:01]} 38. Qb4 {[%emt 0:01:30]} g4 {[%emt 0:01:26]} 39. Qe1 {[%emt 0:04:50]} h5 {[%emt 0:01:22]} 40. Qe3 {[%emt 0:10:40]} Nd3 {[%emt 0:00:11]} 41. Qh6 {[%emt 0:30:42]} (41. Rxa6 $2 Nf2+ 42. Kg1 Nxd1 $19) 41... Nf2+ {[%emt 0:08:35]} 42. Kg1 {[%emt 0:00:00]} Nxd1 {[%emt 0:01:16]} 43. Qxf6+ {[%emt 0:00:00]} Ke8 {[%emt 0:00:07]} 44. Re6+ {[%emt 0:00:00]} (44. Rxa6 $2 {gets mated.} Qc5+ 45. Kh1 Nf2+ 46. Kg1 Rc1#) 44... Kd7 {[%emt 0:00:02]} 45. Re7+ {[%emt 0:00:00]} (45. Rxa6 $2 {is a self mate.} Qc5+ 46. Kh1 Nf2+ 47. Kg1 Rc1#) 45... Kc8 {[%emt 0:00:04]} 46. Qxa6+ {[%emt 0:00:00]} Kd8 {[%emt 0:00:02]} 47. Rxc7 {[%emt 0:00:00]} Kxc7 {[%emt 0:00:04]} 48. Qb6+ {[%emt 0:00:00]} (48. Qa7+ $142 Kd6 49. Qb6+ Kd7 50. Qb7+ Kd8 51. Qd5+ Kc7 52. Qxd1 Rb2 53. Qd5 (53. Qc1 Rb7 $18) 53... Rb1+ 54. Kf2) 48... Kd7 {[%emt 0:00:04]} 49. Qb7+ {[%emt 0:00:00]} Ke8 {[%emt 0:00:05]} 50. f6 {[%emt 0:00:00]} 1-0

[Event "Karel Janecek Open 2024"]
[Site "Prague"]
[Date "2024.03.07"]
[Round "9.6"]
[White "Abdilkhair, Abilmansur"]
[Black "Amar, Elham"]
[Result "1/2-1/2"]
[ECO "B32"]
[WhiteElo "2357"]
[BlackElo "2555"]
[Annotator "TA"]
[PlyCount "88"]
[EventDate "2024.02.22"]
[EventType "swiss"]
[EventCountry "CZE"]
[SourceTitle "playchess.com"]
[Source "ChessBase"]
[SourceQuality "1"]
[TimeControl "40/5400+30:1800+30"]

{[%evp 15,88,-7,0,0,0,-19,-10,-11,-10,-7,0,0,0,0,6,-39,-7,-52,-43,-58,-20,-52,-16,-34,-29,-47,-31,-48,-20,-25,-23,-45,0,-10,0,0,0,0,0,0,0,0,0,0,0,0,0,0,0,0,0,0,8,8,8,0,8,0,0,0,0,0,0,0,0,0,0,0,0,0,0,0,0,0,0]} 1. e4 {[%emt 0:00:10]} c5 {[%emt 0:00:08]} 2. Nf3 {[%emt 0:00:09]} Nc6 {[%emt 0:00:06]} 3. d4 {[%emt 0:00:10]} cxd4 {[%emt 0:00:07]} 4. Nxd4 {[%emt 0:00:06]} e5 {[%emt 0:00:10]} 5. Nf5 {[%emt 0:00:18]} d5 {[%emt 0:10:13]} 6. Qxd5 {[%emt 0:00:04]} Qxd5 {[%emt 0:01:38]} 7. exd5 {[%emt 0:00:08]} Bxf5 {[%emt 0:00:16]} 8. dxc6 {[%emt 0:00:07]} bxc6 {[%emt 0:00:17]} 9. Bd3 {[%emt 0:00:06]} Ne7 {[%emt 0:11:14]} 10. Nd2 {[%emt 0:12:24]} Bxd3 {[%emt 0:09:42]} 11. cxd3 {[%emt 0:00:54]} Nd5 {[%emt 0:00:14]} 12. Nc4 {[%emt 0:00:06]} f6 {[%emt 0:11:50]} 13. Be3 {[%emt 0:04:04]} Kd7 {[%emt 0:03:20]} 14. Ke2 {[%emt 0:02:19]} Bd6 {[%emt 0:01:22]} 15. a4 {[%emt 0:06:53]} Bc7 {[%emt 0:04:12]} 16. a5 {[%emt 0:00:08]} a6 {[%emt 0:00:51]} 17. h4 {[%emt 0:02:26]} h5 {[%emt 0:04:07]} 18. Rh3 {[%emt 0:03:26]} Nf4+ {[%emt 0:03:43]} 19. Bxf4 {[%emt 0:00:02]} exf4 {[%emt 0:00:06]} 20. Rhh1 {[%emt 0:01:43][%cal Bh3h1,Bh1e1,Be1e4,Be4d4,Bd4d6,Bd6f6][%mdl 32]} Rab8 {[%emt 0:01:33]} 21. Kd2 {[%emt 0:00:47]} Rb5 {[%emt 0:01:54]} 22. Rhe1 {[%emt 0:00:50]} g5 {[%emt 0:02:00]} 23. Re4 {[%cal Ob2b4]} Re8 {[%emt 0:06:43]} 24. Rd4+ {[%emt 0:19:04] The position is equal.} Kc8 {[%emt 0:00:05]} 25. Nd6+ {[%emt 0:00:14]} Bxd6 {[%emt 0:00:04]} 26. Rxd6 {[%emt 0:00:04]} Rxb2+ $11 {[%emt 0:01:11][%mdl 4096] Endgame. KRR-KRR} 27. Kc3 {[%emt 0:00:01]} Kc7 {[%emt 0:00:42]} 28. Rxf6 {[%emt 0:00:29]} Rxf2 {[%emt 0:00:12]} 29. hxg5 {[%emt 0:00:55]} Rxg2 {[%emt 0:00:22]} 30. g6 {[%emt 0:07:55]} Re5 {[%emt 0:02:36]} 31. Ra4 {[%emt 0:00:07]} (31. Rxf4 Rc5+ (31... Rxg6 32. Rf7+ Kd6 33. Ra7 $17) 32. Kb4 Rb5+ 33. Kc3 Rxg6 $15) 31... Rc5+ {[%emt 0:01:26]} 32. Kd4 {[%emt 0:08:32]} Rc1 {[%emt 0:08:53][%cal Of4f3]} 33. Ke5 {[%emt 0:08:25]} Re1+ {[%emt 0:10:17]} 34. Re4 {[%emt 0:00:14]} (34. Kxf4 $2 Rf2+ 35. Kg3 Rxf6 $19) 34... Rxe4+ {[%emt 0:01:08]} 35. dxe4 {[%emt 0:00:26][%cal Oe5e6] [#] Black must now prevent Ke6! KR-KR} f3 {[%emt 0:00:32]} 36. Ke6 {[%emt 0:07:59][%cal Oe6f7] Kf7! would now be deadly.} (36. Rxf3 {simplifies} Rxg6 37. Rf7+ Kd8 38. Rh7) 36... f2 {[%emt 0:02:34]} 37. Kf7 {[%emt 0:00:04]} h4 {[%emt 0:00:09]} 38. e5 $1 {[%emt 0:00:17] e6 would kill now.} h3 {[%emt 0:01:36]} 39. e6 $1 {[%emt 0:00:01] [#] Intending e7 and mate.} h2 {[%emt 0:01:03]} 40. e7 {[%emt 0:00:05]} h1=Q {[%emt 0:00:41]} (40... h1=B 41. e8=Q (41. e8=B Rg1 $16) 41... Rg1 42. Rxf2 Rb1 43. Qe5+ Kb7 44. Rb2+ Rxb2 45. Qxb2+ Ka8 46. Ke6 (46. Qh8+ Kb7 47. Qxh1 Kc7 48. Ke7 Kc8 49. g7 Kb7 50. Qb1+ Ka8 51. g8=Q+ Ka7 52. Qgb8#)) 41. e8=Q {[%emt 0:30:02] Chess con chili.} f1=Q {[%emt 0:31:06][%cal Og2e2] ( -> ...Re2!)} (41... f1=R $2 {perishes.} 42. Qxc6+ Kd8 43. Qd6+ (43. Qxa6 Rxf6+ 44. Qxf6+ Kc7 $11) 43... Kc8 44. Qxa6+ Kd8 45. Qd3+ (45. Qxf1 Qxf1 46. Rxf1 Rg4 47. g7 Rg5 48. a6 Kc8 49. a7 Kb7) (45. Rxf1 Rf2+ 46. Rxf2 Qb7+ 47. Qxb7 $11) 45... Kc8 46. Rxf1 $18 (46. Qxf1 Qxf1 47. Rxf1 Rg5 48. g7 Kb7 49. g8=Q Rxg8 50. Kxg8 Kc6)) 42. Qe7+ {[%emt 0:02:55]} Kc8 {[%emt 0:00:00][%cal Og2d2] Threatens to win with ...Rd2!} 43. Qe6+ {[%emt 0:00:00]} Kc7 {[%emt 0:00:00][%cal Og2d2] Hoping for ...Rd2!} 44. Qd6+ {[%emt 0:00:00]} Kc8 {[%emt 0:00:00] Weighted Error Value: White=0.06 (flawless) /Black=0.07 (flawless) .  Inaccurate:     	White=3     	Black=5      OK:         	White=14    	Black=8      Best:        	White=4     	Black=6      Strong:       	White=2     	---} 1/2-1/2

[Event "Karel Janecek Open 2024"]
[Site "Prague"]
[Date "2024.03.07"]
[Round "9.7"]
[White "Chinguun, Sumiya"]
[Black "Polak, Tomas"]
[Result "0-1"]
[ECO "B10"]
[WhiteElo "2319"]
[BlackElo "2525"]
[Annotator "RC"]
[PlyCount "92"]
[EventDate "2024.02.22"]
[EventType "swiss"]
[EventCountry "CZE"]
[SourceTitle "playchess.com"]
[Source "ChessBase"]
[SourceQuality "1"]
[TimeControl "40/5400+30:1800+30"]

1. e4 {[%emt 0:00:01]} c6 {[%emt 0:00:06]} 2. c4 {[%emt 0:00:10]} d5 {[%emt 0:00:14]} 3. cxd5 {[%emt 0:00:14]} cxd5 {[%emt 0:00:05]} 4. exd5 {[%emt 0:00:04]} Nf6 {[%emt 0:00:13]} 5. Nc3 {[%emt 0:00:09]} Nxd5 {[%emt 0:00:17]} 6. Nf3 {[%emt 0:00:10]} Nc6 {[%emt 0:00:18]} 7. Bb5 {[%emt 0:00:08]} g6 {[%emt 0:01:32]} 8. O-O {[%emt 0:13:02]} Bg7 {[%emt 0:00:39]} 9. Qa4 {[%emt 0:08:55]} Qd6 {[%emt 0:02:36]} 10. Re1 {[%emt 0:00:49]} O-O {[%emt 0:02:57]} 11. Bxc6 {[%emt 0:03:16]} bxc6 {[%emt 0:10:46]} 12. Ne4 {[%emt 0:08:44]} Qb4 {[%emt 0:02:10]} 13. Qxc6 {[%emt 0:04:00]} Bb7 {[%emt 0:01:06]} 14. Qc2 {[%emt 0:01:23]} Rac8 {[%emt 0:02:36]} 15. Nc3 {[%emt 0:03:41]} e6 {[%emt 0:27:02]} 16. a3 {[%emt 0:15:38]} Qb6 {[%emt 0:03:15]} 17. Qa4 {[%emt 0:00:39]} Rfd8 {[%emt 0:01:11]} 18. Ne5 {[%emt 0:03:56]} Ne7 {[%emt 0:04:57]} 19. Nc4 {[%emt 0:06:01]} Qc7 {[%emt 0:05:01]} 20. Ne3 {[%emt 0:02:20]} Nc6 {[%emt 0:00:28]} 21. Qh4 {[%emt 0:04:32]} Nd4 {[%emt 0:05:10]} 22. Rb1 {[%emt 0:02:11]} Qc6 {[%emt 0:04:21]} 23. Qg3 {[%emt 0:02:25]} f5 {[%emt 0:03:51]} 24. b4 {[%emt 0:01:24]} e5 {[%emt 0:01:16]} 25. Qh3 {[%emt 0:02:23]} Ne6 {[%emt 0:01:39]} 26. b5 {[%emt 0:00:08]} Qb6 {[%emt 0:02:53]} 27. Qh4 {[%emt 0:07:36]} Rd4 {[%emt 0:05:06]} 28. Qe7 {[%emt 0:01:35]} Rc7 {[%emt 0:01:14]} 29. Qe8+ {[%emt 0:00:22]} Bf8 {[%emt 0:00:36]} 30. a4 {[%emt 0:05:51]} Rc8 {[%emt 0:02:22]} 31. a5 {[%emt 0:01:33]} Qd6 {[%emt 0:00:14]} 32. Ba3 {[%emt 0:00:23]} Rxe8 {[%emt 0:00:39]} 33. Bxd6 {[%emt 0:00:07]} Rxd6 {[%emt 0:03:22]} 34. Nc4 {[%emt 0:00:24]} Rd4 {[%emt 0:00:32]} 35. Nxe5 {[%emt 0:00:42]} Rxd2 {[%emt 0:00:59]} 36. a6 {[%emt 0:00:33]} Ba8 {[%emt 0:00:20]} 37. Na4 {[%emt 0:02:30]} Nc7 {[%emt 0:01:07]} 38. b6 {[%emt 0:00:42]} axb6 {[%emt 0:00:36]} 39. a7 {[%emt 0:00:28]} Ra2 {[%emt 0:01:04]} 40. Nxb6 {[%emt 0:00:33]} Rxa7 {[%emt 0:00:17]} 41. g4 {[%emt 0:01:04]} Be4 {[%emt 0:03:23]} 42. Nbd7 {[%emt 0:00:23]} Bg7 {[%emt 0:02:05]} 43. gxf5 {[%emt 0:00:11]} gxf5 {[%emt 0:00:27]} 44. Rb2 {[%emt 0:00:32]} Bc6 {[%emt 0:08:10]} 45. Rbe2 {[%emt 0:00:25]} Bb5 {[%emt 0:01:50]} 46. Re3 {[%emt 0:00:07]} Nd5 {[%emt 0:00:33]} 0-1

[Event "Karel Janecek Open 2024"]
[Site "Prague"]
[Date "2024.03.07"]
[Round "9.8"]
[White "Cieslak, Patryk"]
[Black "Zhao, Yuanhe"]
[Result "0-1"]
[ECO "A34"]
[WhiteElo "2325"]
[BlackElo "2461"]
[Annotator "RC"]
[PlyCount "170"]
[EventDate "2024.02.22"]
[EventType "swiss"]
[EventCountry "CZE"]
[SourceTitle "playchess.com"]
[Source "ChessBase"]
[SourceQuality "1"]
[TimeControl "40/5400+30:1800+30"]

1. e4 {[%emt 0:00:02]} c5 {[%emt 0:05:05]} 2. Nf3 {[%emt 0:00:03]} a6 {[%emt 0:00:53]} 3. c4 {[%emt 0:00:06]} e6 {[%emt 0:00:14]} 4. Nc3 {[%emt 0:03:20]} Qc7 {[%emt 0:00:43]} 5. Be2 {[%emt 0:01:56]} Nf6 {[%emt 0:01:01]} 6. O-O {[%emt 0:01:54]} Nc6 {[%emt 0:03:00]} 7. Re1 {[%emt 0:11:12]} b6 {[%emt 0:06:45]} 8. d4 {[%emt 0:04:45]} cxd4 {[%emt 0:00:28]} 9. Nxd4 {[%emt 0:00:53]} Nxd4 {[%emt 0:11:08]} 10. Qxd4 {[%emt 0:00:07]} Bd6 {[%emt 0:00:10]} 11. h3 {[%emt 0:02:59]} Be5 {[%emt 0:03:02]} 12. Qe3 {[%emt 0:08:25]} Bb7 {[%emt 0:00:10]} 13. Bd3 {[%emt 0:03:44]} Bxc3 {[%emt 0:09:33]} 14. bxc3 {[%emt 0:00:28]} d6 {[%emt 0:00:08]} 15. Qg3 {[%emt 0:03:35]} Rg8 {[%emt 0:00:35]} 16. Rb1 {[%emt 0:10:01]} Nd7 {[%emt 0:06:10]} 17. Bg5 {[%emt 0:01:39]} e5 {[%emt 0:05:07]} 18. Rb2 {[%emt 0:01:53]} Bc6 {[%emt 0:05:09]} 19. Be3 {[%emt 0:02:18]} Nc5 {[%emt 0:01:16]} 20. Bc2 {[%emt 0:00:51]} Bd7 {[%emt 0:06:03]} 21. Reb1 {[%emt 0:02:32]} Rb8 {[%emt 0:06:20]} 22. f4 {[%emt 0:01:01]} f6 {[%emt 0:02:44]} 23. Qh4 {[%emt 0:02:43]} Be6 {[%emt 0:01:24]} 24. Qxh7 {[%emt 0:01:08]} Bxc4 {[%emt 0:01:42]} 25. fxe5 {[%emt 0:02:26]} dxe5 {[%emt 0:00:33]} 26. Qg6+ {[%emt 0:01:15]} Bf7 {[%emt 0:00:31]} 27. Qg3 {[%emt 0:00:06]} Ke7 {[%emt 0:01:32]} 28. Kh2 {[%emt 0:04:10]} Be6 {[%emt 0:01:44]} 29. Qf2 {[%emt 0:01:29]} Rgc8 {[%emt 0:00:16]} 30. Qg3 {[%emt 0:01:29]} Kf7 {[%emt 0:01:53]} 31. Rf1 {[%emt 0:02:59]} Nd7 {[%emt 0:01:05]} 32. Bd1 {[%emt 0:01:25]} Rh8 {[%emt 0:01:04]} 33. Bg4 {[%emt 0:01:20]} Nf8 {[%emt 0:04:22]} 34. Rfb1 {[%emt 0:07:51]} b5 {[%emt 0:00:24]} 35. a4 {[%emt 0:01:29]} Qc6 {[%emt 0:02:22]} 36. axb5 {[%emt 0:02:22]} axb5 {[%emt 0:01:16]} 37. Ra1 {[%emt 0:00:17]} Rh7 {[%emt 0:09:02]} 38. Ra7+ {[%emt 0:03:59]} Kg8 {[%emt 0:00:11]} 39. Bxe6+ {[%emt 0:04:59]} Nxe6 {[%emt 0:01:18]} 40. Qg6 {[%emt 0:04:17]} Nf8 {[%emt 0:02:44]} 41. Qf7+ {[%emt 0:05:32]} Kh8 {[%emt 0:00:06]} 42. Qc7 {[%emt 0:10:49]} Qe8 {[%emt 0:08:03]} 43. Rb7 {[%emt 0:01:05]} Rc8 {[%emt 0:01:56]} 44. Qd6 {[%emt 0:01:18]} Rh4 {[%emt 0:03:00]} 45. R2xb5 {[%emt 0:03:18]} Qh5 {[%emt 0:04:55]} 46. Bf2 {[%emt 0:03:13]} Rf4 {[%emt 0:04:16]} 47. Bg3 {[%emt 0:00:39]} Rxe4 {[%emt 0:00:28]} 48. Rc5 {[%emt 0:02:29]} Re8 {[%emt 0:00:52]} 49. Rcc7 {[%emt 0:00:34]} Ne6 {[%emt 0:04:01]} 50. Re7 {[%emt 0:00:34]} Rxe7 {[%emt 0:00:19]} 51. Qxe7 {[%emt 0:02:07]} Qf5 {[%emt 0:00:05]} 52. Rb6 {[%emt 0:01:26]} Nf4 {[%emt 0:00:33]} 53. Rb4 {[%emt 0:02:16]} Kh7 {[%emt 0:00:55]} 54. Qb7 {[%emt 0:00:37]} Rxb4 {[%emt 0:02:34]} 55. Qxb4 {[%emt 0:00:30]} e4 {[%emt 0:00:44]} 56. Qc4 {[%emt 0:01:27]} Nd3 {[%emt 0:03:53]} 57. Qd4 {[%emt 0:00:24]} Qe6 {[%emt 0:00:11]} 58. Qe3 {[%emt 0:01:08]} g5 {[%emt 0:00:05]} 59. h4 {[%emt 0:00:28]} gxh4 {[%emt 0:00:43]} 60. Bxh4 {[%emt 0:00:01]} f5 {[%emt 0:00:18]} 61. Bg3 {[%emt 0:00:53]} Kg6 {[%emt 0:00:09]} 62. Kg1 {[%emt 0:00:19]} Qc6 {[%emt 0:00:21]} 63. Kh2 {[%emt 0:00:47]} Qxc3 {[%emt 0:00:28]} 64. Qb6+ {[%emt 0:00:01]} Qf6 {[%emt 0:00:06]} 65. Qb8 {[%emt 0:00:37]} Qe6 {[%emt 0:01:00]} 66. Qd8 {[%emt 0:00:29]} Nb4 {[%emt 0:01:25]} 67. Bh4 {[%emt 0:00:53]} Nd5 {[%emt 0:00:10]} 68. Qg5+ {[%emt 0:00:31]} Kf7 {[%emt 0:00:03]} 69. g4 {[%emt 0:00:29]} f4 {[%emt 0:01:53]} 70. Qh5+ {[%emt 0:00:19]} Kg7 {[%emt 0:00:04]} 71. Qg5+ {[%emt 0:00:08]} Kf8 {[%emt 0:00:03]} 72. Qh5 {[%emt 0:01:00]} e3 {[%emt 0:01:33]} 73. Qh8+ {[%emt 0:00:04]} Kf7 {[%emt 0:00:02]} 74. Qh7+ {[%emt 0:00:01]} Ke8 {[%emt 0:00:06]} 75. Qh8+ {[%emt 0:00:15]} Kd7 {[%emt 0:00:04]} 76. Qd8+ {[%emt 0:00:18]} Kc6 {[%emt 0:00:02]} 77. Qa8+ {[%emt 0:00:01]} Kb5 {[%emt 0:00:22]} 78. Qb7+ {[%emt 0:00:49]} Kc4 {[%emt 0:00:08]} 79. Qb1 {[%emt 0:00:19]} Qxg4 {[%emt 0:01:02]} 80. Qe4+ {[%emt 0:00:57]} Kc5 {[%emt 0:00:04]} 81. Be7+ {[%emt 0:00:07]} Nxe7 {[%emt 0:00:15]} 82. Qxe7+ {[%emt 0:00:02]} Kd4 {[%emt 0:00:17]} 83. Qd6+ {[%emt 0:00:49]} Ke4 {[%emt 0:00:05]} 84. Qc6+ {[%emt 0:00:03]} Kd3 {[%emt 0:00:12]} 85. Kh1 {[%emt 0:01:24]} Qd1+ {[%emt 0:00:13]} 0-1

[Event "Karel Janecek Open 2024"]
[Site "Prague"]
[Date "2024.03.07"]
[Round "9.9"]
[White "Rohit S"]
[Black "Jarmula, Lukasz"]
[Result "1/2-1/2"]
[ECO "B08"]
[WhiteElo "2174"]
[BlackElo "2434"]
[Annotator "TA"]
[PlyCount "43"]
[EventDate "2024.02.22"]
[EventType "swiss"]
[EventCountry "CZE"]
[SourceTitle "playchess.com"]
[Source "ChessBase"]
[SourceQuality "1"]
[TimeControl "40/5400+30:1800+30"]

{[%evp 13,43,35,35,-9,-8,-6,22,-16,4,-15,0,0,0,0,0,0,66,63,79,68,90,89,79,72,86,87,91,82,84,58,74,41]} 1. e4 {[%emt 0:00:02]} d6 {[%emt 0:12:02]} 2. d4 {[%emt 0:00:05]} Nf6 {[%emt 0:00:06]} 3. Nc3 {[%emt 0:00:04]} Nc6 {[%emt 0:00:07]} 4. Nf3 {[%emt 0:00:16]} g6 {[%emt 0:00:17]} 5. Be2 {[%emt 0:00:06]} Bg7 {[%emt 0:00:17]} 6. O-O {[%emt 0:00:06]} O-O {[%emt 0:00:12]} 7. d5 {[%emt 0:00:16]} Nb8 {[%emt 0:00:50][%cal Bc6b8,Bb8d7,Bd7f6][%mdl 32]} 8. e5 {[%emt 0:06:46]} dxe5 {[%emt 0:19:27]} 9. Nxe5 {[%emt 0:00:07]} Nfd7 {[%emt 0:00:12]} 10. Nf3 {[%emt 0:03:13][%cal Be5f3,Bf3d4,Bd4e6][%mdl 32] The position is equal.} Nb6 {[%emt 0:01:34]} 11. Qd2 {[%emt 0:13:23]} N8d7 {[%emt 0:03:15]} 12. Rd1 {[%emt 0:09:38]} Nf6 {[%emt 0:00:27]} 13. Qe1 {[%emt 0:00:29]} Bf5 {[%emt 0:06:52]} (13... Nbxd5 $2 14. Nxd5 Nxd5 15. c4 $18) 14. Nd4 {[%emt 0:02:30]} Bd7 {[%emt 0:00:41] [#]} (14... Nbxd5 $2 {is the wrong capture.} 15. Nxf5 gxf5 16. Nxd5 Nxd5 17. c4 $18) (14... Qc8 $11) 15. Ne6 $1 $14 {[%emt 0:10:11]} Bxe6 {[%emt 0:00:39]} (15... fxe6 16. dxe6) 16. dxe6 {[%emt 0:00:05]} Qc8 {[%emt 0:00:15]} 17. exf7+ {[%emt 0:01:21]} Rxf7 {[%emt 0:00:08]} 18. a4 {[%emt 0:11:28] aiming for a5.} c6 {[%emt 0:03:43]} 19. Bf3 {[%emt 0:01:21]} Nc4 {[%emt 0:05:10][%cal Bb6c4,Bc4d6,Bd6f5][%mdl 32]} 20. Qe2 {[%emt 0:01:53]} Nd6 {[%emt 0:00:17]} 21. Bf4 {[%emt 0:04:01] White has more active pieces.} Nf5 {[%emt 0:01:45]} 22. Qd2 {[%emt 0:04:21] Weighted Error Value: White=0.10 (very precise) /Black=0.13 (very precise) .  Mistake:       	---       	Black=1      Inaccurate:     	White=3     	Black=1      OK:         	White=4     	Black=7      Brilliant:      	White=1     	---} 1/2-1/2

[Event "Karel Janecek Open 2024"]
[Site "Prague"]
[Date "2024.03.07"]
[Round "9.10"]
[White "Mikes, Jan"]
[Black "Bernadskiy, Vitaliy"]
[Result "1/2-1/2"]
[ECO "B15"]
[WhiteElo "2358"]
[BlackElo "2566"]
[Annotator "RC"]
[PlyCount "61"]
[EventDate "2024.02.22"]
[EventType "swiss"]
[EventCountry "CZE"]
[SourceTitle "playchess.com"]
[Source "ChessBase"]
[SourceQuality "1"]
[TimeControl "40/5400+30:1800+30"]

1. e4 {[%emt 0:00:04]} c6 {[%emt 0:03:00]} 2. d4 {[%emt 0:00:10]} d5 {[%emt 0:00:04]} 3. Nc3 {[%emt 0:00:50]} dxe4 {[%emt 0:00:42]} 4. Nxe4 {[%emt 0:00:06]} Nf6 {[%emt 0:00:07]} 5. Nxf6+ {[%emt 0:00:07]} exf6 {[%emt 0:00:07]} 6. c3 {[%emt 0:00:23]} Na6 {[%emt 0:00:36]} 7. Bxa6 {[%emt 0:02:44]} bxa6 {[%emt 0:00:08]} 8. Ne2 {[%emt 0:00:07]} Bd6 {[%emt 0:02:38]} 9. Bf4 {[%emt 0:01:03]} O-O {[%emt 0:00:21]} 10. Bxd6 {[%emt 0:00:40]} Qxd6 {[%emt 0:00:06]} 11. O-O {[%emt 0:00:10]} Re8 {[%emt 0:01:31]} 12. Nc1 {[%emt 0:07:11]} c5 {[%emt 0:05:07]} 13. Nb3 {[%emt 0:00:41]} cxd4 {[%emt 0:11:19]} 14. Qxd4 {[%emt 0:00:07]} Qb6 {[%emt 0:03:37]} 15. Qxb6 {[%emt 0:06:27]} axb6 {[%emt 0:01:50]} 16. Nd4 {[%emt 0:00:15]} Bd7 {[%emt 0:03:47]} 17. Rfe1 {[%emt 0:00:55]} Kf8 {[%emt 0:00:05]} 18. Rxe8+ {[%emt 0:00:29]} Rxe8 {[%emt 0:00:31]} 19. f3 {[%emt 0:02:24]} Re5 {[%emt 0:05:11]} 20. Rd1 {[%emt 0:02:27]} Ke7 {[%emt 0:03:40]} 21. Kf2 {[%emt 0:00:39]} b5 {[%emt 0:03:40]} 22. g4 {[%emt 0:06:19]} h5 {[%emt 0:02:28]} 23. h3 {[%emt 0:01:18]} hxg4 {[%emt 0:00:05]} 24. hxg4 {[%emt 0:00:34]} g5 {[%emt 0:00:25]} 25. a3 {[%emt 0:12:33]} f5 {[%emt 0:04:55]} 26. gxf5 {[%emt 0:01:56]} Rd5 {[%emt 0:00:22]} 27. Rh1 {[%emt 0:04:49]} Bxf5 {[%emt 0:01:02]} 28. Rh8 {[%emt 0:00:58]} Bd7 {[%emt 0:01:09]} 29. Ra8 {[%emt 0:00:25]} Rd6 {[%emt 0:00:25]} 30. Ke3 {[%emt 0:01:37]} f5 {[%emt 0:01:35]} 31. f4 {[%emt 0:16:05]} 1/2-1/2